bitfinex-derivatives/quotes_ETHF0:USTF0_20250520
["timestamp","ask_amount","ask_price","bid_price","bid_amount"]
[1747742510379,0.79613,2511.2,2511.1,2.68282]
[1747742511779,0.79613,2511.2,2511.1,4.03702]
[1747742517888,5.19793,2511.5,2511.1,4.03702]
[1747742518086,3.2078,2511.5,2511.2,2.12042]
[1747742518287,0.7961,2511.3,2511.2,0.79612]
[1747742518481,0.79613,2511.2,2511.1,0.6917]
[1747742518877,0.79613,2511.2,2511.1,10.57482]
[1747742519086,0.79613,2511.2,2511.1,1.99112]
[1747742519282,0.79613,2511.2,2510.9,0.00596967]
[1747742519283,0.79619,2511.0,2510.9,0.00596967]
[1747742519687,0.79619,2511.0,2510.9,1.99724967]
[1747742521086,0.79619,2511.0,2510.9,0.00596967]
[1747742521293,2.78747001,2511.0,2510.9,0.00596967]
[1747742522286,2.78747001,2511.0,2510.9,9.67e-06]
[1747742523090,5.52747001,2511.0,2510.9,9.67e-06]
[1747742526291,0.79638,2510.4,2510.3,0.6361]
[1747742526689,0.79648,2510.1,2510.0,7.893]
[1747742526894,0.79654,2509.9,2509.8,1.48337]
[1747742527189,0.79654,2509.9,2509.8,8.5798]
[1747742527389,0.79654,2509.9,2509.8,11.36852]
[1747742527581,0.79652,2510.0,2509.9,0.79653]
[1747742527990,0.79652,2510.0,2509.9,1.99207]
[1747742529497,0.79652,2510.0,2509.9,2.67807]
[1747742529996,1.99136,2509.9,2509.1,3.2078]
[1747742530291,0.79668,2509.5,2509.3,1.28109901]
[1747742530600,0.7967,2509.4,2509.3,1.28110901]
[1747742530791,3.2078,2509.9,2509.3,8.37837901]
[1747742531089,0.79667,2509.5,2509.4,4.00448]
[1747742531500,0.79667,2509.5,2509.4,3.10784701]
[1747742531693,0.79667,2509.5,2509.4,11.00384701]
[1747742532091,0.79667,2509.5,2509.4,11.00386701]
[1747742532798,1.3307,2509.9,2509.4,13.41496701]
[1747742533099,0.79664,2509.6,2509.5,0.6801]
[1747742533595,0.79664,2509.6,2509.5,11.683857]
[1747742535399,0.79653,2510.0,2509.9,0.79651]
[1747742535597,0.00596967,2510.1,2510.0,0.79651]
[1747742535792,0.00596967,2510.1,2510.0,2.13751]
[1747742535997,0.00596967,2510.1,2510.0,10.4565]
[1747742536703,0.80244967,2510.1,2510.0,5.4565]
[1747742536901,0.80244967,2510.1,2510.0,5.77519701]
[1747742537101,0.80244967,2510.1,2510.0,8.51519701]
[1747742537297,0.80244967,2510.1,2510.0,7.71868701]
[1747742537499,0.80244967,2510.1,2510.0,15.61468701]
[1747742538302,0.80244967,2510.1,2510.0,13.67119701]
[1747742539207,0.80244967,2510.1,2510.0,0.31869701]
[1747742539404,0.00596967,2510.1,2510.0,8.10719701]
[1747742539711,0.79642,2510.3,2510.2,0.79645]
[1747742539908,0.79646,2510.2,2510.1,0.79646]
[1747742540105,0.79648,2510.1,2510.0,3.06386422]
[1747742540312,0.79648,2510.1,2510.0,13.74836422]
[1747742540507,0.53759123,2510.1,2510.0,12.95185422]
[1747742541205,0.53759123,2510.1,2510.0,10.21185422]
[1747742541404,2.52958123,2510.1,2510.0,0.32386422]
[1747742541912,3.91118123,2510.1,2510.0,0.31866732]
[1747742543310,0.79651,2510.0,2509.9,0.6841]
[1747742543614,2.14791,2510.0,2509.9,0.6841]
[1747742544717,2.14791,2510.0,2509.9,1.00278867]
[1747742545219,2.14791,2510.0,2509.9,2.99485867]
[1747742546715,0.79648,2510.1,2510.0,0.79649]
[1747742547216,0.79648,2510.1,2510.0,2.78848]
[1747742547808,0.79648,2510.1,2510.0,1.99199]
[1747742548316,0.79651,2510.0,2509.9,1.00278867]
[1747742548517,2.18591,2510.0,2509.9,1.16847901]
[1747742548816,2.18591,2510.0,2509.9,3.16054901]
[1747742549032,0.79651,2510.0,2509.9,3.16054901]
[1747742549216,0.79651,2510.0,2509.9,4.24497196]
[1747742549519,0.79651,2510.0,2509.9,6.65623196]
[1747742549720,3.38056,2510.2,2509.9,6.49050604]
[1747742549919,0.79648,2510.1,2510.0,0.28788295]
[1747742550520,0.79648,2510.1,2510.0,2.27987295]
[1747742551023,0.79648,2510.1,2510.0,2.59852604]
[1747742552325,2.06738,2510.1,2510.0,2.59852604]
[1747742553618,2.06738,2510.1,2510.0,2.59932501]
[1747742555426,2.06738,2510.1,2510.0,2.59945538]
[1747742556120,0.79648,2510.1,2510.0,4.70506538]
[1747742556823,0.53759218,2510.1,2510.0,3.90855538]
[1747742557218,0.53759218,2510.1,2510.0,10.52144338]
[1747742557415,0.53759218,2510.1,2510.0,2.59944338]
[1747742558817,0.53246007,2510.1,2510.0,2.5995151]
[1747742559019,2.52445007,2510.1,2510.0,0.6075251]
[1747742559732,3.20115007,2510.1,2510.0,0.6075251]
[1747742559924,7.07205007,2510.1,2510.0,0.6075251]
[1747742561832,8.39105007,2510.1,2510.0,0.6075251]
[1747742563935,5.18325007,2510.1,2510.0,0.60771306]
[1747742564646,5.84394509,2510.1,2510.0,0.60771306]
[1747742565748,5.84394509,2510.1,2510.0,0.607724]
[1747742567247,5.84394509,2510.1,2510.0,0.31865309]
[1747742567450,5.84394509,2510.1,2510.0,0.60776937]
[1747742568452,5.84394509,2510.1,2510.0,0.85260664]
[1747742569045,5.84394509,2510.1,2510.0,0.85262882]
[1747742569651,5.18325007,2510.1,2510.0,0.85262882]
[1747742569852,5.18325007,2510.1,2510.0,0.60779155]
[1747742571656,5.18325007,2510.1,2510.0,0.85262882]
[1747742572447,5.18325007,2510.1,2510.0,0.85272729]
[1747742573153,6.17510199,2510.1,2510.0,0.85272729]
[1747742574255,6.17510199,2510.1,2510.0,0.85274634]
[1747742575355,0.79667,2509.5,2509.4,9.87894345]
[1747742576249,2.78914001,2509.5,2509.4,1.95694345]
[1747742576448,1.99247001,2509.5,2509.3,3.2078]
[1747742576646,2.1125,2509.4,2509.3,3.2078]
[1747742577159,4.10505,2509.4,2509.3,3.2078]
[1747742578046,0.7967,2509.4,2509.3,7.94035]
[1747742578656,0.7967,2509.4,2509.3,9.91445]
[1747742579259,0.7967,2509.4,2509.3,7.17445]
[1747742581161,2.1179,2509.4,2509.3,7.17445]
[1747742582865,0.7967,2509.4,2509.3,7.17445]
[1747742583360,0.66460689,2509.4,2509.3,12.97118]
[1747742583564,1.79429809,2509.6,2509.5,0.79667]
[1747742583765,1.79429809,2509.6,2509.5,8.69367]
[1747742584062,1.79429809,2509.6,2509.5,10.68605999]
[1747742584250,1.79429809,2509.6,2509.5,12.62938999]
[1747742584861,1.79429809,2509.6,2509.5,2.74]
[1747742585162,0.79667,2509.5,2509.4,9.2429]
[1747742585361,0.79667,2509.5,2509.4,12.03203]
[1747742585970,1.99185,2509.3,2508.8,0.80806338]
[1747742586264,1.99185,2509.3,2508.2,1.13182642]
[1747742586265,0.79705,2508.3,2508.2,1.13182642]
[1747742586568,4.54307317,2508.3,2508.2,1.13182642]
[1747742587265,4.54307317,2508.3,2508.2,1.41111474]
[1747742587860,4.54307317,2508.3,2508.2,0.27928832]
[1747742588755,0.79714,2508.0,2507.9,1.2874]
[1747742589061,1.33536317,2508.0,2507.9,1.56648637]
[1747742589262,4.54316317,2508.0,2507.9,4.30648637]
[1747742590161,4.54316317,2508.0,2507.9,1.56648637]
[1747742590361,4.54316317,2508.0,2507.9,3.59996252]
[1747742590562,4.00494,2508.0,2507.9,3.87865186]
[1747742590864,4.00488,2508.3,2507.9,8.87865186]
[1747742591065,4.00488,2508.3,2508.2,0.79708]
[1747742591267,4.00488,2508.3,2508.2,10.17010934]
[1747742591965,4.00488,2508.3,2508.2,10.85140934]
[1747742592162,4.00488,2508.3,2508.2,11.64827959]
[1747742592470,4.00488,2508.3,2508.2,10.85119959]
[1747742593668,4.00488,2508.3,2507.7,3.2078]
[1747742593866,0.79759,2506.6,2506.5,1.61808423]
[1747742594058,4.00539,2506.6,2506.5,1.61808423]
[1747742594369,3.2078,2506.6,2506.5,3.61285923]
[1747742594569,3.2078,2506.6,2506.5,4.41047923]
[1747742594970,3.2078,2506.6,2506.5,12.89247923]
[1747742595164,3.2078,2506.6,2506.5,15.63247923]
[1747742595664,3.2078,2506.6,2506.5,7.15047923]
[1747742595964,3.2078,2506.6,2506.5,15.63247923]
[1747742596171,4.00539,2506.6,2506.5,13.216775]
[1747742597267,4.00539,2506.6,2506.5,4.734775]
[1747742597674,4.00539,2506.6,2506.5,5.532395]
[1747742597866,3.2078,2506.6,2506.5,5.532395]
[1747742598166,4.00539,2506.6,2506.5,13.218775]
[1747742598372,4.00539,2506.6,2506.5,2.74]
[1747742598560,4.00539,2506.6,2506.5,4.734775]
[1747742598960,4.00539,2506.6,2506.5,6.040975]
[1747742599773,4.00539,2506.6,2506.5,6.12583977]
[1747742600876,4.00539,2506.6,2506.5,6.040975]
[1747742601476,4.00539,2506.6,2506.5,6.838595]
[1747742601881,3.2078,2506.6,2506.5,6.838595]
[1747742602070,4.00539,2506.6,2506.5,6.838595]
[1747742602270,4.00539,2506.6,2506.5,6.040975]
[1747742602779,4.00539,2506.6,2506.5,6.838595]
[1747742603772,4.00539,2506.6,2506.5,1.468595]
[1747742603971,0.79794,2505.5,2505.4,0.81351882]
[1747742604176,0.79797,2505.4,2505.3,0.64909741]
[1747742604373,4.142345,2505.4,2505.3,0.64909741]
[1747742604868,3.2078,2505.5,2505.3,2.64482741]
[1747742605176,3.2078,2505.5,2505.4,10.33897]
[1747742605377,3.2078,2505.5,2505.4,0.79797]
[1747742605576,4.5574,2505.8,2505.6,0.7979]
[1747742605779,4.5574,2505.8,2505.4,11.53665]
[1747742605981,0.79789,2505.7,2505.6,0.7979]
[1747742606478,4.5574,2505.8,2505.6,1.99548999]
[1747742606672,0.79788,2505.7,2505.6,2.79338999]
[1747742607079,0.79788,2505.7,2505.6,1.99548999]
[1747742607988,2.16938,2505.7,2505.6,1.99548999]
[1747742608782,1.3715,2505.7,2505.6,2.79339999]
[1747742608984,3.2078,2505.8,2505.7,0.79788]
[1747742609178,0.79788,2505.7,2505.6,6.86637999]
[1747742609379,0.79788,2505.7,2505.6,5.53337999]
[1747742609578,4.00566,2505.8,2505.7,0.79788]
[1747742610081,4.00567,2505.8,2505.7,0.79788]
[1747742610282,4.00567,2505.8,2505.7,2.79329]
[1747742610677,3.2078,2505.8,2505.7,2.79329]
[1747742611076,3.2078,2506.1,2505.7,1.99541]
[1747742611276,3.2078,2506.1,2506.0,0.79778]
[1747742611679,3.2078,2506.1,2506.0,2.79294999]
[1747742612178,3.2078,2506.1,2506.0,6.17654999]
[1747742614081,1.2854,2506.5,2506.1,0.79775]
[1747742614082,3.2078,2506.4,2506.1,0.79775]
[1747742614281,3.2078,2506.7,2506.6,0.79759]
[1747742614480,6.000155,2506.7,2506.6,10.34159]
[1747742614785,4.00538,2506.7,2506.6,12.336285]
[1747742615484,3.2078,2506.7,2506.6,12.336285]
[1747742615692,3.2078,2506.7,2506.6,12.967385]
[1747742617691,3.2078,2506.7,2506.6,13.2864264]
[1747742621796,3.2078,2507.0,2506.9,0.79749]
[1747742622291,3.2078,2507.0,2506.9,5.53194499]
[1747742622592,4.00526,2507.0,2506.9,4.73445499]
[1747742622891,4.00526,2507.0,2506.9,5.53194499]
[1747742623086,4.00526,2507.0,2506.9,15.07494499]
[1747742623287,4.00526,2507.0,2506.9,15.7165855]
[1747742623890,6.000035,2507.0,2506.9,15.7165855]
[1747742624196,4.00526,2507.0,2506.9,15.7165855]
[1747742625296,6.000035,2507.0,2506.9,3.38164051]
[1747742625493,6.000035,2507.0,2506.9,12.92464051]
[1747742625994,6.000035,2507.0,2506.9,15.7165855]
[1747742626196,6.000035,2507.0,2506.9,12.9765855]
[1747742626487,6.000035,2507.0,2506.9,9.8620414]
[1747742627094,6.657735,2507.0,2506.9,9.8620414]
[1747742628199,4.00526,2507.0,2506.9,12.65398639]
[1747742629194,6.000035,2507.0,2506.9,12.65398639]
[1747742630494,4.00526,2507.0,2506.9,12.65398639]
[1747742631887,4.00526,2507.0,2506.9,10.6595314]
[1747742632295,6.000035,2507.0,2506.9,13.3995314]
[1747742632801,4.00526,2507.0,2506.9,13.3995314]
[1747742632987,6.000035,2507.0,2506.9,13.3995314]
[1747742633389,4.00526,2507.0,2506.9,13.3995314]
[1747742634500,6.000035,2507.0,2506.9,13.3995314]
[1747742634703,4.00526,2507.0,2506.9,13.3995314]
[1747742635095,6.000035,2507.0,2506.9,13.3995314]
[1747742635312,4.00526,2507.0,2506.9,12.6020414]
[1747742635695,6.000035,2507.0,2506.9,12.6020414]
[1747742635903,4.00526,2507.0,2506.9,12.6020414]
[1747742636099,4.00526,2507.0,2506.9,12.1870414]
[1747742636298,4.00526,2507.0,2506.9,12.9845314]
[1747742636499,6.000035,2507.0,2506.9,12.9845314]
[1747742636710,4.00526,2507.0,2506.9,12.9845314]
[1747742636894,4.00526,2507.0,2506.9,12.1870414]
[1747742637100,4.00526,2507.0,2506.9,12.9845314]
[1747742637306,6.000035,2507.0,2506.9,12.9845314]
[1747742637507,4.00526,2507.0,2506.9,12.9845314]
[1747742638003,6.000035,2507.0,2506.9,12.1870414]
[1747742638908,4.00526,2507.0,2506.9,12.47657227]
[1747742639403,5.99434752,2507.0,2506.9,12.47657227]
[1747742639707,5.99434752,2507.0,2506.9,12.72196924]
[1747742640106,3.99957252,2507.0,2506.9,12.72196924]
[1747742640303,5.99434752,2507.0,2506.9,12.72196924]
[1747742640602,5.99434752,2507.0,2506.9,13.51945924]
[1747742640803,3.99957252,2507.0,2506.9,12.72196924]
[1747742641003,5.99434752,2507.0,2506.9,12.72196924]
[1747742641308,3.99957252,2507.0,2506.9,12.72196924]
[1747742641509,5.99434752,2507.0,2506.9,12.72196924]
[1747742641804,3.99957252,2507.0,2506.9,12.72196924]
[1747742642305,3.99957252,2507.0,2506.9,10.78026416]
[1747742642703,3.99957252,2507.0,2506.9,10.53583575]
[1747742642911,3.99957252,2507.0,2506.9,9.73834575]
[1747742643204,5.99434752,2507.0,2506.9,9.73834575]
[1747742643705,3.99957252,2507.0,2506.9,9.73834575]
[1747742644406,3.99957252,2507.0,2506.9,10.06094486]
[1747742644601,5.99434752,2507.0,2506.9,10.06094486]
[1747742645297,0.79177252,2507.0,2506.9,10.06094486]
[1747742645507,5.99434752,2507.0,2506.9,10.06094486]
[1747742645707,5.99434752,2507.0,2506.9,10.06114868]
[1747742647106,5.99434752,2507.0,2506.9,12.80114868]
[1747742647306,5.99434752,2507.0,2506.9,12.80114323]
[1747742648112,5.99434752,2507.0,2506.9,10.06114323]
[1747742648807,5.99434752,2507.0,2506.9,0.93314323]
[1747742649008,0.79749,2506.9,2506.8,0.4881647]
[1747742649205,4.826265,2506.9,2506.8,0.77974362]
[1747742649405,9.826265,2506.9,2506.8,0.77974362]
[1747742650611,9.826265,2506.9,2506.8,0.29157892]
[1747742651810,4.826265,2506.9,2506.8,0.29157892]
[1747742652412,0.79752,2506.8,2506.7,0.25135422]
[1747742652607,4.090295,2506.8,2506.7,0.25135422]
[1747742653715,4.090295,2506.8,2506.7,0.00598182]
[1747742654010,4.090295,2506.8,2506.7,0.80353182]
[1747742655613,3.292775,2506.8,2506.7,2.79814682]
[1747742655811,3.2078,2507.0,2506.9,0.79749]
[1747742656018,5.202575,2507.0,2506.9,9.92649]
[1747742656214,4.00526,2507.0,2506.9,11.869]
[1747742656517,4.00526,2507.0,2506.9,13.1546547]
[1747742656705,4.00526,2507.0,2506.9,12.3571647]
[1747742656706,7.267235,2507.0,2506.9,12.3571647]
[1747742656908,5.27246,2507.0,2506.9,12.3571647]
[1747742657106,7.267235,2507.0,2506.9,12.3571647]
[1747742657311,7.267235,2507.0,2506.9,3.2281647]
[1747742657509,7.267235,2507.0,2506.9,12.3571647]
[1747742657921,7.903335,2507.0,2506.9,12.3571647]
[1747742658320,7.903335,2507.0,2506.9,11.869]
[1747742659318,7.903335,2507.0,2506.9,9.129]
[1747742659515,0.79759,2506.6,2506.5,0.64909741]
[1747742659716,0.79768,2506.3,2506.2,0.81351882]
[1747742659917,5.99426848,2506.3,2506.2,0.81351882]
[1747742661014,5.99426848,2506.3,2506.2,1.09577865]
[1747742662218,5.99426848,2506.3,2506.2,9.97560737]
[1747742664051,5.99426848,2506.3,2506.2,0.84660737]
[1747742664736,7.38426848,2506.3,2506.2,0.84660737]
[1747742665247,7.38426848,2506.3,2506.2,9.50639932]
[1747742665884,7.38426848,2506.3,2506.2,9.50603603]
[1747742666363,5.19658848,2506.3,2506.2,11.50104603]
[1747742666642,4.32904641,2506.3,2506.2,12.95946603]
[1747742667046,4.32904641,2506.3,2506.2,12.95929043]
[1747742669262,4.32904641,2506.3,2506.2,12.95933596]
[1747742670851,4.32904641,2506.3,2506.2,13.04420073]
[1747742671247,4.32904641,2506.3,2506.2,13.698167]
[1747742671638,3.2078,2506.6,2506.5,0.79762]
[1747742671928,3.2078,2506.6,2506.5,1.07938647]
[1747742672126,3.2078,2506.6,2506.5,5.81416147]
[1747742672635,3.2078,2506.6,2506.5,5.81417858]
[1747742673025,4.00539,2506.6,2506.5,6.13331807]
[1747742673330,3.2078,2506.6,2506.5,6.13331807]
[1747742674434,3.2078,2506.6,2506.5,6.13332505]
[1747742674638,4.00539,2506.6,2506.5,6.13332505]
[1747742674837,3.2078,2506.6,2506.5,6.13332505]
[1747742675431,3.2078,2506.6,2506.5,5.85153449]
[1747742675638,3.2078,2506.6,2506.5,6.13333185]
[1747742676331,3.2078,2506.6,2506.5,6.13332205]
[1747742676537,2.72922499,2506.6,2506.5,6.13332205]
[1747742678435,3.52681499,2506.6,2506.5,6.13332205]
[1747742680254,2.72922499,2506.6,2506.5,6.13332205]
[1747742680455,3.52681499,2506.6,2506.5,6.13332205]
[1747742680861,2.72922499,2506.6,2506.5,6.13332205]
[1747742681060,2.72922499,2506.6,2506.5,6.62357074]
[1747742681360,3.52681499,2506.6,2506.5,6.62359799]
[1747742683148,2.72922499,2506.6,2506.5,6.62358016]
[1747742683643,3.52681499,2506.6,2506.5,6.62358016]
[1747742684646,3.52681499,2506.6,2506.5,6.6235722]
[1747742686243,3.52681499,2506.6,2506.5,15.5275722]
[1747742686643,2.72922499,2506.6,2506.5,15.5275722]
[1747742687345,3.52681499,2506.6,2506.5,15.5275722]
[1747742687646,3.04822813,2506.6,2506.5,15.5275722]
[1747742688145,3.04822813,2506.6,2506.5,15.52760402]
[1747742689955,3.04822813,2506.6,2506.5,15.5276316]
[1747742690342,3.04822813,2506.6,2506.5,15.52764017]
[1747742693348,3.04822813,2506.6,2506.5,15.52781358]
[1747742694050,3.04822813,2506.6,2506.5,16.15911358]
[1747742694247,3.04822813,2506.6,2506.5,17.54481358]
[1747742695052,2.65937518,2506.6,2506.5,17.54481358]
[1747742695745,1.86178518,2506.6,2506.5,17.54481358]
[1747742695954,2.65937518,2506.6,2506.5,17.05515758]
[1747742696249,3.74774153,2506.6,2506.5,17.05515758]
[1747742696550,3.74774153,2506.6,2506.5,17.05515874]
[1747742697046,3.74774153,2506.6,2506.5,15.66945874]
[1747742697246,2.95015153,2506.6,2506.5,15.75432351]
[1747742697548,1.3476,2506.6,2506.5,16.40828978]
[1747742697942,2.14519,2506.6,2506.5,16.40828978]
[1747742698143,2.14519,2506.6,2506.5,16.32342501]
[1747742698343,2.14519,2506.6,2506.5,16.32341581]
[1747742699150,2.14519,2506.6,2506.5,15.66944954]
[1747742701052,2.14519,2506.6,2506.5,15.36044954]
[1747742701547,1.3476,2506.6,2506.5,15.36044954]
[1747742701748,3.2078,2506.9,2506.8,0.79753]
[1747742701948,3.2078,2506.9,2506.8,1.08014505]
[1747742702253,4.0053,2506.9,2506.8,5.01715005]
[1747742702456,4.0053,2506.9,2506.8,5.81468005]
[1747742702754,4.0053,2506.9,2506.8,6.78975483]
[1747742702946,4.0053,2506.9,2506.8,6.78960047]
[1747742703653,2.16878,2507.0,2506.9,0.7975]
[1747742703852,2.16878,2507.0,2506.9,9.67496069]
[1747742704151,2.16878,2507.0,2506.9,12.41496069]
[1747742704351,2.16878,2507.0,2506.9,12.73410018]
[1747742705256,1.7799703,2507.0,2506.9,12.73410018]
[1747742706362,0.9824903,2507.0,2506.9,14.72840681]
[1747742706660,0.9824903,2507.0,2506.9,15.40450681]
[1747742707256,1.7799603,2507.0,2506.9,15.40450681]
[1747742707454,1.30143,2507.0,2506.9,15.40450681]
[1747742707654,0.6757,2507.1,2507.0,0.79747]
[1747742707953,1.47313,2507.1,2507.0,2.38470001]
[1747742708151,1.47313,2507.1,2507.0,6.32160501]
[1747742708761,0.6757,2507.1,2507.0,7.11907501]
[1747742709158,0.6757,2507.1,2507.0,7.4382145]
[1747742709457,1.47313,2507.1,2507.0,7.4382145]
[1747742709764,1.47313,2507.1,2507.0,7.43811276]
[1747742709957,1.47313,2507.1,2507.0,6.64064276]
[1747742710264,1.47313,2507.1,2507.0,5.33564276]
[1747742710755,2.84553,2507.1,2507.0,5.33564276]
[1747742710960,2.84553,2507.1,2507.0,3.83153754]
[1747742711162,2.84553,2507.1,2507.0,5.82591254]
[1747742711358,2.58632619,2507.1,2507.0,5.8259279]
[1747742712260,4.5807012,2507.1,2507.0,3.83140688]
[1747742712461,4.5807012,2507.1,2507.0,12.42540688]
[1747742713158,4.5807012,2507.1,2507.0,12.42540485]
[1747742714458,5.24594003,2507.1,2507.0,3.83140485]
[1747742714658,5.24594003,2507.1,2507.0,12.42540485]
[1747742715366,5.24594003,2507.1,2507.0,12.26189201]
[1747742716464,5.24594003,2507.1,2507.0,12.26199476]
[1747742716768,5.24594003,2507.1,2507.0,12.18019001]
[1747742717260,5.24594003,2507.1,2507.0,9.44019001]
[1747742717662,4.5807012,2507.1,2507.0,9.44019001]
[1747742718164,4.5807012,2507.1,2507.0,9.44025284]
[1747742718663,4.5807012,2507.1,2507.0,9.19530065]
[1747742719568,4.5807012,2507.1,2507.0,0.60130065]
[1747742720070,4.5807012,2507.1,2507.0,0.60128613]
[1747742720461,4.5807012,2507.1,2507.0,0.6861509]
[1747742721467,9.5807012,2507.1,2507.0,9e-07]
[1747742721662,0.79756,2506.7,2506.6,0.49026978]
[1747742721868,4.00536,2506.7,2506.6,0.49026978]
[1747742722173,6.000055,2506.7,2506.6,0.49026978]
[1747742722665,6.000055,2506.7,2506.4,9.25093529]
[1747742722666,0.79762,2506.5,2506.4,8.595]
[1747742722965,2.792475,2506.5,2506.4,8.595]
[1747742723369,4.126275,2506.5,2506.4,8.595]
[1747742723574,0.79772,2506.2,2506.1,0.49026978]
[1747742723774,4.00552,2506.2,2506.1,0.49026978]
[1747742724070,6.00061,2506.2,2506.1,8.595]
[1747742725175,0.79775,2506.1,2506.0,43.43926978]
[1747742725472,2.14565,2506.1,2506.0,52.03426978]
[1747742725769,4.14082,2506.1,2506.0,51.544]
[1747742726074,2.14565,2506.1,2506.0,2.74]
[1747742726266,4.14082,2506.1,2506.0,11.112]
[1747742728575,4.14082,2506.1,2506.0,2.74]
[1747742728972,4.80608333,2506.1,2506.0,2.74]
[1747742731070,1.46301333,2506.1,2506.0,2.74]
[1747742731280,1.46301333,2506.1,2506.0,4.89858]
[1747742731576,0.79775,2506.1,2506.0,6.89374999]
[1747742732981,4.67079333,2506.2,2506.1,0.79775]
[1747742733180,3.87306333,2506.2,2506.1,0.79775]
[1747742733477,4.67078333,2506.2,2506.1,3.48254]
[1747742733670,4.67078333,2506.2,2506.1,2.68479]
[1747742733875,4.67078333,2506.2,2506.1,9.0627]
[1747742734066,4.67078333,2506.2,2506.1,9.38184426]
[1747742734577,6.66587333,2506.2,2506.1,9.38184426]
[1747742734876,6.66587333,2506.2,2506.1,10.17959426]
[1747742735373,6.00061,2506.2,2506.1,10.17959426]
[1747742735576,6.00061,2506.2,2506.1,9.38184426]
[1747742736076,6.00061,2506.2,2506.1,10.17959426]
[1747742736776,6.00061,2506.2,2506.1,9.38184426]
[1747742737175,6.00061,2506.2,2506.1,10.17959426]
[1747742739473,4.00552,2506.2,2506.1,10.17959426]
[1747742739976,6.00061,2506.2,2506.1,10.17959426]
[1747742740671,4.00552,2506.2,2506.1,10.17959426]
[1747742741071,6.00061,2506.2,2506.1,10.17959426]
[1747742741271,6.00061,2506.2,2506.1,9.38184426]
[1747742742680,6.00061,2506.2,2506.1,10.17959426]
[1747742743278,4.00552,2506.2,2506.1,12.17468426]
[1747742743472,3.2078,2506.2,2506.1,12.17468426]
[1747742743672,4.00552,2506.2,2506.1,12.17468426]
[1747742745679,3.2078,2506.2,2506.1,12.17468426]
[1747742747181,4.00552,2506.2,2506.1,12.17468426]
[1747742747480,3.2078,2506.2,2506.1,12.17468426]
[1747742747678,2.72913582,2506.2,2506.1,10.17959426]
[1747742747878,3.52685582,2506.2,2506.1,12.17468426]
[1747742749380,3.13794639,2506.2,2506.1,12.17468426]
[1747742749776,2.34022639,2506.2,2506.1,12.17468426]
[1747742749978,2.34022639,2506.2,2506.1,12.25954903]
[1747742750979,2.34022639,2506.2,2506.1,12.17468426]
[1747742752174,2.34022639,2506.2,2506.1,12.25954903]
[1747742752783,1.46279333,2506.9,2506.2,1.9943]
[1747742752982,1.46279333,2506.9,2506.8,0.79753]
[1747742753281,1.46279333,2506.9,2506.8,11.90953]
[1747742753469,3.45732834,2506.9,2506.8,11.112]
[1747742753665,0.66526333,2506.9,2506.8,13.904065]
[1747742754579,0.66526333,2506.9,2506.8,5.532065]
[1747742754782,1.46275333,2506.9,2506.8,13.106535]
[1747742756076,1.46275333,2506.9,2506.8,15.25564155]
[1747742756283,1.46275333,2506.9,2506.8,16.05317155]
[1747742756883,0.79749,2506.9,2506.8,16.05317155]
[1747742757778,0.79749,2506.9,2506.8,4.39864426]
[1747742757986,2.79202501,2506.9,2506.8,3.05914426]
[1747742758184,2.79202501,2506.9,2506.8,11.26414426]
[1747742760389,2.79202501,2506.9,2506.8,8.52414426]
[1747742761096,2.79202501,2506.9,2506.8,9.32167426]
[1747742761386,2.79202501,2506.9,2506.8,12.06167426]
[1747742762181,2.79202501,2506.9,2506.8,13.43707426]
[1747742762887,1.3963,2507.0,2506.9,0.79749]
[1747742763082,0.00598182,2507.2,2507.1,0.79743]
[1747742763479,0.99931165,2507.3,2507.2,0.7974]
[1747742763681,0.99931165,2507.3,2507.2,10.3768]
[1747742763978,0.99931165,2507.3,2507.2,12.371015]
[1747742764579,0.99931165,2507.3,2507.2,4.167015]
[1747742764878,0.99931165,2507.3,2507.2,12.69015926]
[1747742766790,3.2078,2507.4,2507.3,0.79737]
[1747742766990,3.2078,2507.4,2507.3,2.85527]
[1747742767190,3.2078,2507.4,2507.3,7.589405]
[1747742767489,4.00513,2507.4,2507.3,12.937135]
[1747742767683,5.39493,2507.4,2507.3,10.943]
[1747742767987,5.39493,2507.4,2507.3,2.74]
[1747742768186,5.39493,2507.4,2507.3,11.58792561]
[1747742768381,7.389065,2507.4,2507.3,11.58792561]
[1747742768584,5.39493,2507.4,2507.3,11.58792561]
[1747742769685,7.389065,2507.4,2507.3,3.38492561]
[1747742769888,7.389065,2507.4,2507.3,12.38529561]
[1747742770089,7.389065,2507.4,2507.3,12.05951426]
[1747742770090,5.999265,2507.4,2507.3,12.05951426]
[1747742770287,4.00513,2507.4,2507.3,14.11781426]
[1747742770592,4.00513,2507.4,2507.3,13.32044426]
[1747742771087,4.00513,2507.4,2507.3,14.11781426]
[1747742772287,4.00513,2507.4,2507.3,13.32044426]
[1747742772492,5.999265,2507.4,2507.3,11.26214426]
[1747742772692,7.990465,2507.4,2507.3,11.26214426]
[1747742773292,5.99633,2507.4,2507.3,11.26214426]
[1747742773589,7.990465,2507.4,2507.3,11.26214426]
[1747742774185,7.307565,2507.4,2507.3,11.26214426]
[1747742775293,7.307565,2507.4,2507.3,12.56644426]
[1747742775890,7.307565,2507.4,2507.3,11.26214426]
[1747742776592,7.307565,2507.4,2507.3,11.54482492]
[1747742777398,5.31343,2507.4,2507.3,12.34219492]
[1747742777589,7.307565,2507.4,2507.3,13.63629492]
[1747742777789,5.31343,2507.4,2507.3,13.63629492]
[1747742778295,5.31343,2507.4,2507.3,13.96258308]
[1747742779302,4.00513,2507.4,2507.3,13.96258308]
[1747742779497,4.00513,2507.4,2507.3,13.16521308]
[1747742779692,4.00513,2507.4,2507.3,12.88202561]
[1747742779897,4.00513,2507.4,2507.3,15.83427219]
[1747742780194,3.2078,2507.4,2507.3,16.63164219]
[1747742780390,4.00513,2507.4,2507.3,16.71650696]
[1747742781496,4.00513,2507.4,2507.3,16.87964143]
[1747742781893,4.00513,2507.4,2507.3,16.08227143]
[1747742782394,4.00513,2507.4,2507.3,7.87927143]
[1747742782595,4.00513,2507.4,2507.3,16.87864143]
[1747742783900,4.00513,2507.4,2507.3,8.67664143]
[1747742784102,4.00513,2507.4,2507.3,16.87864143]
[1747742784502,4.00513,2507.4,2507.3,16.87882311]
[1747742784696,3.52669098,2507.4,2507.3,16.87882311]
[1747742784892,3.52669098,2507.4,2507.3,16.87880833]